Workbook

Sheet 预估计划表
A1: 量化流量来源预估和销量分解
A2: 目标成交额 | B2: 活动价 | C2: 客单价 | D2: 预估备货量 | E2: 所需UV | F2: 预估活动UV | G2: 流量缺口 | H2: 购买转化率 | I2: 卖出订单数 | J2: 平均购买件数 | K2: 流量补缺计划 | L2: 最总流量缺口
A3: 1000000 | B3: 59 | C3: =B3*J3 -> 118 | D3: =A3/59 -> 16949.15254 | E3: =I3/H3 -> 28248.58757 | F3: 20000 | G3: =E3-F3 -> 8248.587571 | H3: 0.3 | I3: =A3/C3 -> 8474.576271 | J3: 2 | K3: 5000 | L3: =G3-K3 -> 3248.587571
A5: 来源预估跟销量产出分解评估 | C5: 预估带来流量值 | E5: 流量UV总和 | F5: 平均点击成本 | G5: 所需花费 | H5: 转化率 | I5: 成交人数 | J5: 人均成交件数 | K5: 售出数量 | L5: 成交金额
B6: 流量来源入口 | C6: 预热期间 | D6: 活动期间 | E6: 根据行业值
A7: 站内付费流量 | B7: 直通车 | C7: 200 | D7: 800 | E7: =C7+D7 -> 1000 | F7: 3 | G7: =F7*E7 -> 3000 | H7: 0.05 | I7: =H7*E7 -> 50 | J7: 3 | K7: =J7*I7 -> 150 | L7: =B3*K7 -> 8850
B8: 钻展 | C8: 500 | D8: 1000 | E8: =C8+D8 -> 1500 | F8: 1 | G8: =F8*E8 -> 1500 | H8: 0.03 | I8: =H8*E8 -> 45 | J8: 3 | K8: =J8*I8 -> 135 | L8: =K8*B3 -> 7965
B9: 淘宝客 | C9: 500 | D9: 500 | E9: 1000 | F9: 6.8 | G9: 6800 | H9: 0.07 | I9: 70 | J9: 2 | K9: 140 | L9: =K9*B3 -> 8260
B10: 天猫首焦(或淘金币） | C10: 500 | D10: 1000 | E10: 1500 | F10: 1 | G10: 1500 | H10: 0.03 | I10: 45 | J10: 3 | K10: 135 | L10: =K10*B3 -> 7965
B11: 天猫无线端首焦 | C11: 500 | D11: 1000 | E11: 1500 | F11: 1 | G11: 1500 | H11: 0.03 | I11: 45 | J11: 3 | K11: 135 | L11: =K11*B3 -> 7965
B12: 其他 | E12: 0 | G12: 0 | I12: 0 | K12: 0 | L12: 0
A13: 站外付费流量 | B13: 返利/导航网站 | C13: 500 | D13: 1000 | E13: 1500 | F13: 1.8 | G13: 2700 | H13: 0.018 | I13: 27 | J13: 3 | K13: 81 | L13: =K13*B3 -> 4779
B14: QQ空间 微博 | C14: 500 | D14: 1000 | E14: 1500 | F14: 0.8 | G14: 1200 | H14: 0.03 | I14: 45 | J14: 3 | K14: 135 | L14: =K14*B3 -> 7965
B15: 新浪微博推广 | C15: 500 | D15: 1000 | E15: 1500 | F15: 0.75 | G15: 1125 | H15: 0.03 | I15: 45 | J15: 3 | K15: 135 | L15: =K15*B3 -> 7965
B16: 百度竞价 | E16: 0 | G16: 0 | I16: 0 | K16: 0 | L16: 0
B17: 论坛文字链 | E17: 0 | G17: 0 | I17: 0 | K17: 0 | L17: 0
B18: 其他 | E18: 0 | G18: 0 | I18: 0 | K18: 0 | L18: 0
A19: 免费流量 | B19: 自然搜索 | C19: 150 | D19: 350 | E19: 500 | F19: 0 | G19: 0 | H19: 0.05 | I19: 25 | J19: 3 | K19: 75 | L19: =K19*B3 -> 4425
B20: 预热优惠券 | C20: 1000 | D20: 1500 | E20: 2500 | F20: 5 | G20: 12500 | H20: 0.15 | I20: 375 | J20: 3 | K20: =J20*I20 -> 1125 | L20: =K20*B3 -> 66375
B21: 老客户 | C21: 500 | D21: 2000 | E21: 2500 | F21: 1.7 | G21: 4250 | H21: 0.1 | I21: 250 | J21: 3 | K21: 750 | L21: =K21*B3 -> 44250
A22: 活动平台流量 | B22: 活动平台-首页 | C22: 2000 | D22: 3000 | E22: 5000 | F22: 0 | G22: 0 | H22: 0.3 | I22: 1500 | J22: 3 | K22: 4500 | L22: =K22*B3 -> 265500
B23: 活动平台-分类页 | C23: 3500 | D23: 5500 | E23: 9000 | F23: 0 | G23: 0 | H23: 0.3 | I23: 2700 | J23: 3 | K23: 8100 | L23: =K23*B3 -> 477900
B24: 活动平台-无线端 | C24: 800 | D24: 2500 | E24: 3300 | F24: 0 | G24: 0 | H24: 0.3 | I24: 990 | J24: 3 | K24: 2970 | L24: =K24*B3 -> 175230
B25: 其他
A26: 汇总 | E26: =SUM(E7:E25) -> 33800 | G26: =SUM(G7:G25) -> 36075 | I26: =SUM(I7:I25) -> 6212 | K26: 18566 | L26: 1095394

Sheet 活动检查表
A1: 平台预估 | B1: 活动平台
B2: 活动价格
B3: 预估流量
B4: 预估销量
B5: 预估转化
B6: PC流量
B7: 无线流量
A8: 平台要求 | B8: 预存款
B9: 保证金
B10: 保底费用
B11: 技术服务费用
B12: 淘宝客设置
B13: 上下架通知
B14: 活动页面设置
A15: 商品准备 | B15: 主图
B16: 直通车图
B17: 标题
B18: 广告词
B19: SKU图片
B20: SKU价格
B21: SKU库存
B22: SKU命名
B23: 仓库对接
B24: ERP对接
B25: 是否限购
B26: 详情页布局
A27: 优化方向 | B27: PC端
B28: 无线端
A29: 营销方案 | B29: 初始方案
B30: 预备方案1
B31: 预留方案2
A32: 话术准备 | B32: 初始方案
B33: 预留方案1
B34: 预留方案2
A35: 商品连带 | B35: 店招广告
B36: 套餐搭配
B37: 关联商品
A38: 最后准备 | B38: 老客户通知
B39: 查看第一评价
B40: 预留一定好评

Sheet 客服话术设计
A1: 一、产品角度
A2: 1. 品牌？
A3: 2. 产品的质量？
A4: 3. 宝贝的材质？
A5: 4. 款式的介绍？
A6: 5. 宝贝优势？
A7: 二、客户角度
A8: 1. 是实拍吗？
A9: 2. 存在色差吗？
A10: 3. 能给包邮吗？
A11: 4. 有赠品吗？
A12: 5. 适合多大尺码？
A13: 6. 什么时候能发货？
A14: 7. 有质量保障吗？
A15: 8. 退换货运费谁承担？
A16: 三、客服角度
A17: 1. 活动的大小？
A18: 2. 优惠的力度？
A19: 3. 明确的要求？
A20: 四、运营角度
A21: 1. 活动连带？
A22: 2. 优化方向？
A23: 3. 时间段的数据？

Sheet 客服话术案例1
A1: 一、产品角度 | B1: 客服话术
A2: 1. 品牌？ | B2: 亲，小天鹅全心全意只做洗衣机，品牌信得过哦，您放心购买。
A3: 2. 产品的质量？ | B3: 亲，小天鹅全心全意37年只做洗衣机，品质信得过哦。
A4: 3. 宝贝的材质？ | B4: 亲，洗衣机外卡是渗锌钢板哦，不会生锈哦
A5: 4. 款式的介绍？ | B5: 亲，三口之家建议，卖7公斤的波轮洗衣机，性价比超高哦。
A6: 5. 宝贝优势？ | B6: 亲，此款小天鹅洗衣机脱水转速高达1200哦，洗衣更洁净。
A7: 二、客户角度
A8: 1. 是实拍吗？ | B8: 亲，所有产品都是实体拍摄，没有P过哦
A9: 2. 存在色差吗？ | B9: 亲，洗衣机在厕所里面由于光线问题，机体颜色可能稍微偏暗哦
A10: 3. 能给包邮吗？ | B10: 亲，能拍下就能送，能送就能上门，信我哦
A11: 4. 有赠品吗？ | B11: 亲，小天鹅品牌洗衣机，我们最关注的是您的使用感觉，如果觉得好记得好评哦
A12: 5. 适合多大尺码？
A13: 6. 什么时候能发货？
A14: 7. 有质量保障吗？ | B14: 亲，小天鹅品牌保证，全国联保，三年整机包修
A15: 8. 退换货运费谁承担？ | B15: 亲，洗衣机由于是物流运输成本较高，天猫规则若无质量问题，退货是要收取相关运费的，请您谅解。
A16: 三、客服角度
A17: 1. 活动的大小？ | B17: 亲，本次活动是聚划算，低于平时售价200元哦
A18: 2. 优惠的力度？ | B18: 亲，这几天做活动哦，价格比较优惠，有些地区已经没有货了，喜欢的话就抓紧拍吧。
A19: 3. 明确的要求？ | B19: 亲，您的要求我们反映给我们的售后部门，如有需求一会我们售后人员会联系您的，亲，稍微等待一下。
A20: 四、运营角度
A21: 1. 活动连带？ | B21: 高低客单各找一款，做活动备选
A22: 2. 优化方向？ | B22: 无货仓库顾客引导向库存量大的仓库
A23: 3. 时间段的数据？ | B23: 紧盯流量趋势，随时调整引流力度

Sheet 物流提醒，客户引导
A3: (本文出自《义乌普鲁皮具厂2015冬季淘宝分销培训课程》转载请注明出处) 全国运费5.5元 一件代发 http://pluvip.1688.com 钱包工厂诚招代理 免费装修 / 100%盈利 / 活动报名 / 运营指导 / 提供数据包/图片包/刷单买家秀
